[Event "Titled Tuesday Blitz March 22 Early 2022"]
[White "Olsen, Filip Boe"]
[Black "Fathy, Elameir"]
[WhiteFideId "1440640"]
[BlackFideId "10600396"]
[WhiteElo "2188"]
[BlackElo "2311"]
[Result "1/2-1/2"]
[Round "06"]
[TimeControl "180+1"]
[Date "2022.03.22"]
[WhiteClock "0:02:02"]
[BlackClock "0:01:22"]

1. d4 {[%clk 0:03:00]}  d5 {[%clk 0:02:59]} 2. c4 {[%clk 0:03:01]}  c6 {[%clk 0:02:58]} 3. cxd5 {[%clk 0:03:01]}  cxd5 {[%clk 0:02:58]} 4. Nc3 {[%clk 0:03:02]}  Nf6 {[%clk 0:02:59]} 5. Bf4 {[%clk 0:03:02]}  Nc6 {[%clk 0:02:59]} 6. e3 {[%clk 0:03:03]}  a6 {[%clk 0:02:59]} 7. Bd3 {[%clk 0:03:03]}  Bg4 {[%clk 0:03:00]} 8. Nge2 {[%clk 0:03:03]}  e6 {[%clk 0:03:00]} 9. O-O {[%clk 0:03:03]}  Bd6 {[%clk 0:02:56]} 10. f3 {[%clk 0:03:03]}  Bh5 {[%clk 0:02:56]} 11. Rc1 {[%clk 0:03:03]}  Bg6 {[%clk 0:02:52]} 12. Na4 {[%clk 0:03:01]}  O-O {[%clk 0:02:49]} 13. Nc5 {[%clk 0:03:01]}  Bxf4 {[%clk 0:02:29]} 14. Nxf4 {[%clk 0:03:01]}  Bxd3 {[%clk 0:02:30]} 15. Nfxd3 {[%clk 0:03:01]}  Qe7 {[%clk 0:02:28]} 16. Rc3 {[%clk 0:02:58]}  Rac8 {[%clk 0:02:27]} 17. Qc2 {[%clk 0:02:56]}  e5 {[%clk 0:02:07]} 18. dxe5 {[%clk 0:02:30]}  Nxe5 {[%clk 0:02:08]} 19. Nxe5 {[%clk 0:02:17]}  Qxe5 {[%clk 0:02:08]} 20. Nxb7 {[%clk 0:02:12]}  Qxe3+ {[%clk 0:02:00]} 21. Rxe3 {[%clk 0:02:03]}  Rxc2 {[%clk 0:02:00]} 22. Rf2 {[%clk 0:02:03]}  Rc1+ {[%clk 0:01:59]} 23. Rf1 {[%clk 0:02:03]}  Rc2 {[%clk 0:02:00]} 24. Rf2 {[%clk 0:02:03]}  Rc1+ {[%clk 0:01:43]} 25. Rf1 {[%clk 0:02:02]}  Rc2 {[%clk 0:01:22]} 1/2-1/2


[Site "https://www.chess.com"]

[Event "Titled Tuesday Blitz March 22 Early 2022"]
[White "Orlov, Georgi"]
[Black "Buscar, Michael"]
[WhiteFideId "2011271"]
[BlackFideId "2603616"]
[WhiteElo "2544"]
[BlackElo "2010"]
[Result "1-0"]
[Round "06"]
[TimeControl "180+1"]
[Date "2022.03.22"]
[WhiteClock "0:00:13"]
[BlackClock "0:00:02"]

1. d4 {[%clk 0:02:57]}  d5 {[%clk 0:02:39]} 2. Nf3 {[%clk 0:02:56]}  Nf6 {[%clk 0:02:36]} 3. Bf4 {[%clk 0:02:56]}  e6 {[%clk 0:02:37]} 4. e3 {[%clk 0:02:55]}  a6 {[%clk 0:02:30]} 5. Nbd2 {[%clk 0:02:51]}  c5 {[%clk 0:02:27]} 6. c3 {[%clk 0:02:48]}  Nc6 {[%clk 0:02:24]} 7. Bd3 {[%clk 0:02:47]}  Ne7 {[%clk 0:02:23]} 8. Ne5 {[%clk 0:02:46]}  Ng6 {[%clk 0:02:23]} 9. Bg3 {[%clk 0:02:45]}  Be7 {[%clk 0:02:14]} 10. h4 {[%clk 0:02:41]}  Nxe5 {[%clk 0:02:06]} 11. dxe5 {[%clk 0:02:34]}  Nd7 {[%clk 0:02:04]} 12. Qg4 {[%clk 0:02:33]}  Bf8 {[%clk 0:01:42]} 13. h5 {[%clk 0:02:33]}  h6 {[%clk 0:01:41]} 14. f4 {[%clk 0:02:29]}  Qb6 {[%clk 0:01:33]} 15. O-O-O {[%clk 0:02:20]}  c4 {[%clk 0:01:33]} 16. Bc2 {[%clk 0:02:07]}  Qxe3 {[%clk 0:01:33]} 17. Rde1 {[%clk 0:02:05]}  Qb6 {[%clk 0:01:32]} 18. f5 {[%clk 0:02:05]}  Nc5 {[%clk 0:01:31]} 19. f6 {[%clk 0:02:01]}  gxf6 {[%clk 0:01:26]} 20. exf6 {[%clk 0:02:01]}  Bd7 {[%clk 0:01:25]} 21. Nf3 {[%clk 0:01:50]}  O-O-O {[%clk 0:01:19]} 22. Qf4 {[%clk 0:01:50]}  Ba4 {[%clk 0:01:06]} 23. Bb1 {[%clk 0:01:31]}  Bd6 {[%clk 0:01:01]} 24. Ne5 {[%clk 0:01:31]}  Nd7 {[%clk 0:00:43]} 25. Qh4 {[%clk 0:01:19]}  Nxe5 {[%clk 0:00:28]} 26. Bxe5 {[%clk 0:01:18]}  Bxe5 {[%clk 0:00:21]} 27. Rxe5 {[%clk 0:01:18]}  Rhg8 {[%clk 0:00:19]} 28. Re2 {[%clk 0:01:09]}  Kb8 {[%clk 0:00:18]} 29. Qf4+ {[%clk 0:01:07]}  Ka7 {[%clk 0:00:18]} 30. Qxh6 {[%clk 0:01:06]}  d4 {[%clk 0:00:19]} 31. Qf4 {[%clk 0:00:53]}  Ka8 {[%clk 0:00:16]} 32. h6 {[%clk 0:00:49]}  dxc3 {[%clk 0:00:16]} 33. bxc3 {[%clk 0:00:48]}  Bc6 {[%clk 0:00:11]} 34. h7 {[%clk 0:00:47]}  Rh8 {[%clk 0:00:11]} 35. Rd2 {[%clk 0:00:45]}  Rxd2 {[%clk 0:00:09]} 36. Qxd2 {[%clk 0:00:45]}  Qa5 {[%clk 0:00:09]} 37. Rd1 {[%clk 0:00:41]}  Bd5 {[%clk 0:00:08]} 38. Qb2 {[%clk 0:00:40]}  Qc5 {[%clk 0:00:08]} 39. Rd4 {[%clk 0:00:38]}  Qd6 {[%clk 0:00:09]} 40. Qf2 {[%clk 0:00:38]}  Qa3+ {[%clk 0:00:08]} 41. Qb2 {[%clk 0:00:37]}  Qc5 {[%clk 0:00:09]} 42. Qb4 {[%clk 0:00:35]}  Qc7 {[%clk 0:00:09]} 43. Bc2 {[%clk 0:00:32]}  Qh2 {[%clk 0:00:09]} 44. Qe7 {[%clk 0:00:29]}  Rxh7 {[%clk 0:00:09]} 45. Qf8+ {[%clk 0:00:27]}  Ka7 {[%clk 0:00:09]} 46. Qc5+ {[%clk 0:00:25]}  Ka8 {[%clk 0:00:08]} 47. Bxh7 {[%clk 0:00:25]}  Qxh7 {[%clk 0:00:09]} 48. Rg4 {[%clk 0:00:23]}  Qh6+ {[%clk 0:00:09]} 49. Kc2 {[%clk 0:00:22]}  Qh7+ {[%clk 0:00:08]} 50. Kb2 {[%clk 0:00:22]}  Qh8 {[%clk 0:00:07]} 51. Ka3 {[%clk 0:00:19]}  Qe8 {[%clk 0:00:06]} 52. Rg7 {[%clk 0:00:17]}  Bc6 {[%clk 0:00:06]} 53. Qe7 {[%clk 0:00:16]}  Qc8 {[%clk 0:00:05]} 54. Rxf7 {[%clk 0:00:14]}  Ka7 {[%clk 0:00:05]} 55. Qc5+ {[%clk 0:00:13]}  Kb8 {[%clk 0:00:02]} 56. Rf8 {[%clk 0:00:13]} 1-0


[Site "https://www.chess.com"]

[Event "Titled Tuesday Blitz March 22 Early 2022"]
[White "Osmonbekov, Talaibek"]
[Black "Kuzmin, Roman"]
[WhiteFideId "2017253"]
[BlackFideId "44134932"]
[WhiteElo "2135"]
[BlackElo "1978"]
[Result "1/2-1/2"]
[Round "06"]
[TimeControl "180+1"]
[Date "2022.03.22"]
[WhiteClock "0:00:06"]
[BlackClock "0:00:30"]

1. d4 {[%clk 0:00:44]}  Nf6 {[%clk 0:02:30]} 2. Nc3 {[%clk 0:00:45]}  e6 {[%clk 0:02:23]} 3. e4 {[%clk 0:00:43]}  d5 {[%clk 0:02:18]} 4. e5 {[%clk 0:00:43]}  Nfd7 {[%clk 0:02:08]} 5. Nce2 {[%clk 0:00:44]}  c5 {[%clk 0:02:06]} 6. c3 {[%clk 0:00:45]}  Nc6 {[%clk 0:02:03]} 7. Nf3 {[%clk 0:00:44]}  Qb6 {[%clk 0:01:57]} 8. g3 {[%clk 0:00:43]}  cxd4 {[%clk 0:01:48]} 9. cxd4 {[%clk 0:00:43]}  Bb4+ {[%clk 0:01:40]} 10. Bd2 {[%clk 0:00:43]}  O-O {[%clk 0:01:38]} 11. Bg2 {[%clk 0:00:42]}  Na5 {[%clk 0:01:34]} 12. b3 {[%clk 0:00:36]}  Bxd2+ {[%clk 0:01:30]} 13. Qxd2 {[%clk 0:00:37]}  Qd8 {[%clk 0:01:27]} 14. O-O {[%clk 0:00:36]}  b5 {[%clk 0:01:27]} 15. Rfc1 {[%clk 0:00:32]}  Bb7 {[%clk 0:01:24]} 16. Rc2 {[%clk 0:00:32]}  Nc6 {[%clk 0:01:22]} 17. Rac1 {[%clk 0:00:30]}  Qb6 {[%clk 0:01:22]} 18. a3 {[%clk 0:00:26]}  a5 {[%clk 0:01:21]} 19. Qd3 {[%clk 0:00:23]}  h6 {[%clk 0:01:14]} 20. Bf1 {[%clk 0:00:22]}  Rfc8 {[%clk 0:01:11]} 21. Nf4 {[%clk 0:00:19]}  Ba6 {[%clk 0:01:09]} 22. Qe3 {[%clk 0:00:17]}  b4 {[%clk 0:01:07]} 23. Bxa6 {[%clk 0:00:15]}  Qxa6 {[%clk 0:01:05]} 24. a4 {[%clk 0:00:16]}  Ne7 {[%clk 0:00:59]} 25. g4 {[%clk 0:00:16]}  g6 {[%clk 0:00:47]} 26. h4 {[%clk 0:00:12]}  Rxc2 {[%clk 0:00:47]} 27. Rxc2 {[%clk 0:00:12]}  Rc8 {[%clk 0:00:48]} 28. Qc1 {[%clk 0:00:11]}  Rxc2 {[%clk 0:00:45]} 29. Qxc2 {[%clk 0:00:12]}  Qc6 {[%clk 0:00:46]} 30. Qxc6 {[%clk 0:00:09]}  Nxc6 {[%clk 0:00:47]} 31. g5 {[%clk 0:00:09]}  h5 {[%clk 0:00:42]} 32. Kf1 {[%clk 0:00:09]}  Ne7 {[%clk 0:00:41]} 33. Ke2 {[%clk 0:00:08]}  Nf5 {[%clk 0:00:42]} 34. Kd3 {[%clk 0:00:08]}  Nb8 {[%clk 0:00:41]} 35. Ne2 {[%clk 0:00:08]}  Nc6 {[%clk 0:00:41]} 36. Ng3 {[%clk 0:00:08]}  Nfe7 {[%clk 0:00:40]} 37. Ne2 {[%clk 0:00:08]}  Kf8 {[%clk 0:00:41]} 38. Ng3 {[%clk 0:00:08]}  Ke8 {[%clk 0:00:42]} 39. Ne2 {[%clk 0:00:08]}  Kd7 {[%clk 0:00:42]} 40. Ng3 {[%clk 0:00:09]}  Nc8 {[%clk 0:00:43]} 41. Ne2 {[%clk 0:00:09]}  Nb6 {[%clk 0:00:43]} 42. Ng3 {[%clk 0:00:08]}  Ke7 {[%clk 0:00:42]} 43. Ne2 {[%clk 0:00:08]}  Na7 {[%clk 0:00:42]} 44. Nf4 {[%clk 0:00:07]}  Nac8 {[%clk 0:00:41]} 45. Ne2 {[%clk 0:00:07]}  Nxa4 {[%clk 0:00:41]} 46. bxa4 {[%clk 0:00:07]}  Nb6 {[%clk 0:00:42]} 47. Nc1 {[%clk 0:00:06]}  Nxa4 {[%clk 0:00:42]} 48. Nb3 {[%clk 0:00:06]}  Nb2+ {[%clk 0:00:40]} 49. Kc2 {[%clk 0:00:05]}  Nc4 {[%clk 0:00:39]} 50. Nfd2 {[%clk 0:00:06]}  a4 {[%clk 0:00:38]} 51. Nxc4 {[%clk 0:00:06]}  axb3+ {[%clk 0:00:38]} 52. Kxb3 {[%clk 0:00:06]}  dxc4+ {[%clk 0:00:38]} 53. Kxc4 {[%clk 0:00:06]}  Kd7 {[%clk 0:00:38]} 54. Kxb4 {[%clk 0:00:07]}  Kc6 {[%clk 0:00:36]} 55. Kc4 {[%clk 0:00:07]}  Kc7 {[%clk 0:00:31]} 56. d5 {[%clk 0:00:07]}  exd5+ {[%clk 0:00:32]} 57. Kxd5 {[%clk 0:00:08]}  Kd7 {[%clk 0:00:33]} 58. f4 {[%clk 0:00:08]}  Ke7 {[%clk 0:00:33]} 59. Kd4 {[%clk 0:00:06]}  Kd7 {[%clk 0:00:33]} 60. Kd5 {[%clk 0:00:06]}  Ke7 {[%clk 0:00:33]} 61. Kd4 {[%clk 0:00:06]}  Kd7 {[%clk 0:00:30]} 62. Kd5 {[%clk 0:00:06]} 1/2-1/2


[Site "https://www.chess.com"]

[Event "Titled Tuesday Blitz March 22 Early 2022"]
[White "Petrosyan, Manuel"]
[Black "Hnydiuk, Aleksander"]
[WhiteFideId "13300857"]
[BlackFideId "1109057"]
[WhiteElo "2592"]
[BlackElo "2374"]
[Result "1-0"]
[Round "06"]
[TimeControl "180+1"]
[Date "2022.03.22"]
[WhiteClock "0:00:44"]
[BlackClock "0:00:21"]

1. c4 {[%clk 0:03:00]}  Nf6 {[%clk 0:02:59]} 2. g3 {[%clk 0:02:57]}  g6 {[%clk 0:02:59]} 3. Bg2 {[%clk 0:02:57]}  Bg7 {[%clk 0:03:00]} 4. Nc3 {[%clk 0:02:56]}  O-O {[%clk 0:03:01]} 5. d4 {[%clk 0:02:56]}  d6 {[%clk 0:03:00]} 6. Nf3 {[%clk 0:02:56]}  Nc6 {[%clk 0:03:00]} 7. O-O {[%clk 0:02:57]}  e5 {[%clk 0:03:00]} 8. dxe5 {[%clk 0:02:57]}  dxe5 {[%clk 0:03:01]} 9. Bg5 {[%clk 0:02:57]}  Be6 {[%clk 0:03:00]} 10. Qc1 {[%clk 0:02:56]}  Qc8 {[%clk 0:02:59]} 11. Rd1 {[%clk 0:02:53]}  Nd7 {[%clk 0:02:57]} 12. b3 {[%clk 0:02:51]}  f5 {[%clk 0:02:36]} 13. Bh6 {[%clk 0:02:38]}  e4 {[%clk 0:02:17]} 14. Bxg7 {[%clk 0:02:32]}  Kxg7 {[%clk 0:02:17]} 15. Ng5 {[%clk 0:02:28]}  Bg8 {[%clk 0:02:02]} 16. Qb2 {[%clk 0:02:22]}  Nde5 {[%clk 0:01:57]} 17. f4 {[%clk 0:01:50]}  exf3 {[%clk 0:01:53]} 18. exf3 {[%clk 0:01:49]}  h6 {[%clk 0:01:53]} 19. Nh3 {[%clk 0:01:47]}  Kh7 {[%clk 0:01:47]} 20. Nd5 {[%clk 0:01:43]}  Rf7 {[%clk 0:01:17]} 21. Nf2 {[%clk 0:01:40]}  Qf8 {[%clk 0:01:12]} 22. f4 {[%clk 0:01:39]}  Ng4 {[%clk 0:01:06]} 23. Nxg4 {[%clk 0:01:38]}  fxg4 {[%clk 0:01:06]} 24. Re1 {[%clk 0:01:27]}  Qc5+ {[%clk 0:00:42]} 25. Kh1 {[%clk 0:01:26]}  Raf8 {[%clk 0:00:43]} 26. Rad1 {[%clk 0:01:19]}  Nb4 {[%clk 0:00:40]} 27. Nc3 {[%clk 0:01:10]}  c6 {[%clk 0:00:30]} 28. a3 {[%clk 0:01:03]}  Na6 {[%clk 0:00:27]} 29. b4 {[%clk 0:00:57]}  Qxc4 {[%clk 0:00:21]} 30. Bf1 {[%clk 0:00:44]} 1-0


[Site "https://www.chess.com"]

[Event "Titled Tuesday Blitz March 22 Early 2022"]
[White "Pinheiro, Iung Alicio de O."]
[Black "Toncheva, Nadya"]
[WhiteFideId "2104350"]
[BlackFideId "2924056"]
[WhiteElo "2528"]
[BlackElo "1884"]
[Result "0-1"]
[Round "06"]
[TimeControl "180+1"]
[Date "2022.03.22"]
[WhiteClock "0:00:06"]
[BlackClock "0:00:04"]

1. c4 {[%clk 0:03:00]}  c6 {[%clk 0:02:58]} 2. g3 {[%clk 0:02:59]}  d5 {[%clk 0:02:58]} 3. Bg2 {[%clk 0:03:00]}  dxc4 {[%clk 0:02:57]} 4. Na3 {[%clk 0:02:59]}  Nf6 {[%clk 0:02:55]} 5. Nxc4 {[%clk 0:02:56]}  Bf5 {[%clk 0:02:55]} 6. b3 {[%clk 0:02:55]}  Nbd7 {[%clk 0:02:54]} 7. Bb2 {[%clk 0:02:53]}  Qc7 {[%clk 0:02:53]} 8. Nf3 {[%clk 0:02:50]}  e6 {[%clk 0:02:53]} 9. O-O {[%clk 0:02:48]}  Be7 {[%clk 0:02:53]} 10. Rc1 {[%clk 0:02:43]}  O-O {[%clk 0:02:53]} 11. d3 {[%clk 0:02:38]}  h6 {[%clk 0:02:52]} 12. a3 {[%clk 0:02:37]}  Rfd8 {[%clk 0:02:52]} 13. b4 {[%clk 0:02:37]}  Rac8 {[%clk 0:02:51]} 14. Na5 {[%clk 0:02:36]}  Qb6 {[%clk 0:02:46]} 15. Nd2 {[%clk 0:02:29]}  Qa6 {[%clk 0:02:28]} 16. Qb3 {[%clk 0:02:16]}  Nb6 {[%clk 0:02:18]} 17. Nf3 {[%clk 0:02:00]}  c5 {[%clk 0:02:00]} 18. Ne5 {[%clk 0:01:58]}  cxb4 {[%clk 0:01:54]} 19. Bxb7 {[%clk 0:01:11]}  Qxa5 {[%clk 0:01:50]} 20. Bxc8 {[%clk 0:01:11]}  Rxc8 {[%clk 0:01:45]} 21. Nc6 {[%clk 0:01:11]}  Rxc6 {[%clk 0:01:31]} 22. Rxc6 {[%clk 0:01:12]}  bxa3 {[%clk 0:01:31]} 23. Ra1 {[%clk 0:00:59]}  Bh3 {[%clk 0:00:53]} 24. Bc3 {[%clk 0:00:37]}  Qh5 {[%clk 0:00:50]} 25. f3 {[%clk 0:00:20]}  Bc5+ {[%clk 0:00:28]} 26. d4 {[%clk 0:00:19]}  Qe5 {[%clk 0:00:28]} 27. dxc5 {[%clk 0:00:02]}  Qe3+ {[%clk 0:00:28]} 28. Kh1 {[%clk 0:00:02]}  Ne4 {[%clk 0:00:05]} 29. Rf1 {[%clk 0:00:02]}  Qxe2 {[%clk 0:00:02]} 30. Rc8+ {[%clk 0:00:03]}  Kh7 {[%clk 0:00:02]} 31. Rh8+ {[%clk 0:00:03]}  Kxh8 {[%clk 0:00:02]} 32. Qd1 {[%clk 0:00:04]}  Nf2+ {[%clk 0:00:02]} 33. Rxf2 {[%clk 0:00:04]}  Qxd1+ {[%clk 0:00:03]} 34. Be1 {[%clk 0:00:05]}  Qxe1+ {[%clk 0:00:03]} 35. Rf1 {[%clk 0:00:06]}  Qxf1# {[%clk 0:00:04]} 0-1


[Site "https://www.chess.com"]

[Event "Titled Tuesday Blitz March 22 Early 2022"]
[White "Popadic, Dragan"]
[Black "Omariev, Maksim"]
[WhiteFideId "913650"]
[BlackFideId "4193423"]
[WhiteElo "2222"]
[BlackElo "2513"]
[Result "0-1"]
[Round "06"]
[TimeControl "180+1"]
[Date "2022.03.22"]
[WhiteClock "0:00:01"]
[BlackClock "0:00:07"]

1. e4 {[%clk 0:03:00]}  c5 {[%clk 0:02:53]} 2. Nc3 {[%clk 0:02:59]}  d6 {[%clk 0:02:53]} 3. f4 {[%clk 0:02:59]}  Nc6 {[%clk 0:02:53]} 4. Nf3 {[%clk 0:02:59]}  g6 {[%clk 0:02:53]} 5. Bc4 {[%clk 0:02:59]}  Bg7 {[%clk 0:02:53]} 6. d3 {[%clk 0:02:59]}  e6 {[%clk 0:02:54]} 7. O-O {[%clk 0:02:59]}  Nge7 {[%clk 0:02:54]} 8. Qe1 {[%clk 0:02:59]}  h6 {[%clk 0:02:55]} 9. Bb3 {[%clk 0:02:58]}  a6 {[%clk 0:02:42]} 10. a4 {[%clk 0:02:57]}  b6 {[%clk 0:02:40]} 11. Ne2 {[%clk 0:02:53]}  Bd7 {[%clk 0:02:37]} 12. c3 {[%clk 0:02:52]}  b5 {[%clk 0:02:31]} 13. Kh1 {[%clk 0:02:49]}  d5 {[%clk 0:02:24]} 14. exd5 {[%clk 0:02:40]}  exd5 {[%clk 0:02:25]} 15. d4 {[%clk 0:02:33]}  c4 {[%clk 0:02:16]} 16. Bc2 {[%clk 0:02:33]}  O-O {[%clk 0:02:16]} 17. Ne5 {[%clk 0:02:28]}  b4 {[%clk 0:02:06]} 18. Nxd7 {[%clk 0:02:12]}  Qxd7 {[%clk 0:02:06]} 19. Qh4 {[%clk 0:02:12]}  b3 {[%clk 0:02:04]} 20. Bb1 {[%clk 0:02:12]}  f5 {[%clk 0:01:53]} 21. Ng1 {[%clk 0:02:09]}  Nc8 {[%clk 0:01:48]} 22. Nf3 {[%clk 0:02:08]}  Nd6 {[%clk 0:01:46]} 23. Ne5 {[%clk 0:02:08]}  Qe8 {[%clk 0:01:47]} 24. Qg3 {[%clk 0:02:03]}  Kh7 {[%clk 0:01:46]} 25. Bd2 {[%clk 0:02:01]}  Nb7 {[%clk 0:01:27]} 26. Qh3 {[%clk 0:01:52]}  Nbd8 {[%clk 0:01:25]} 27. g4 {[%clk 0:01:51]}  Qe6 {[%clk 0:01:09]} 28. gxf5 {[%clk 0:01:41]}  gxf5 {[%clk 0:01:08]} 29. Rg1 {[%clk 0:01:39]}  Ne7 {[%clk 0:01:00]} 30. Be1 {[%clk 0:01:31]}  Nf7 {[%clk 0:00:39]} 31. Bh4 {[%clk 0:01:22]}  Nd6 {[%clk 0:00:26]} 32. a5 {[%clk 0:01:04]}  Bf6 {[%clk 0:00:23]} 33. Bg5 {[%clk 0:00:58]}  Bxg5 {[%clk 0:00:20]} 34. fxg5 {[%clk 0:00:57]}  Rg8 {[%clk 0:00:18]} 35. Ra4 {[%clk 0:00:20]}  Rg7 {[%clk 0:00:15]} 36. Rb4 {[%clk 0:00:19]}  Nb5 {[%clk 0:00:15]} 37. g6+ {[%clk 0:00:17]}  Kg8 {[%clk 0:00:14]} 38. Qxh6 {[%clk 0:00:15]}  Rf8 {[%clk 0:00:13]} 39. Rxb5 {[%clk 0:00:08]}  axb5 {[%clk 0:00:13]} 40. a6 {[%clk 0:00:08]}  Qxa6 {[%clk 0:00:10]} 41. Qh4 {[%clk 0:00:05]}  Qf6 {[%clk 0:00:09]} 42. Qh5 {[%clk 0:00:01]}  Qe6 {[%clk 0:00:07]} 0-1


[Site "https://www.chess.com"]

[Event "Titled Tuesday Blitz March 22 Early 2022"]
[White "Rodrigue-Lemieux, Shawn"]
[Black "Vasquez Schroeder, Rodrigo"]
[WhiteFideId "2620049"]
[BlackFideId "3400042"]
[WhiteElo "1763"]
[BlackElo "2561"]
[Result "0-1"]
[Round "06"]
[TimeControl "180+1"]
[Date "2022.03.22"]
[WhiteClock "0:00:03"]
[BlackClock "0:01:04"]

1. c4 {[%clk 0:03:00]}  c5 {[%clk 0:02:59]} 2. g3 {[%clk 0:03:01]}  g6 {[%clk 0:02:59]} 3. Bg2 {[%clk 0:03:01]}  Bg7 {[%clk 0:03:00]} 4. Nc3 {[%clk 0:03:02]}  Nc6 {[%clk 0:03:00]} 5. Nf3 {[%clk 0:03:03]}  d6 {[%clk 0:02:59]} 6. O-O {[%clk 0:03:03]}  e6 {[%clk 0:02:59]} 7. e3 {[%clk 0:03:01]}  Nge7 {[%clk 0:03:00]} 8. d4 {[%clk 0:03:02]}  O-O {[%clk 0:02:59]} 9. dxc5 {[%clk 0:03:00]}  dxc5 {[%clk 0:02:59]} 10. Qc2 {[%clk 0:02:59]}  a6 {[%clk 0:02:56]} 11. Rd1 {[%clk 0:02:59]}  Qc7 {[%clk 0:02:56]} 12. a3 {[%clk 0:03:00]}  b6 {[%clk 0:02:56]} 13. b3 {[%clk 0:02:59]}  Bb7 {[%clk 0:02:57]} 14. Bb2 {[%clk 0:03:00]}  Rad8 {[%clk 0:02:55]} 15. Ne4 {[%clk 0:02:57]}  f6 {[%clk 0:02:53]} 16. Rxd8 {[%clk 0:02:56]}  Nxd8 {[%clk 0:02:51]} 17. Rd1 {[%clk 0:02:55]}  Bc6 {[%clk 0:02:42]} 18. h4 {[%clk 0:02:36]}  h5 {[%clk 0:02:37]} 19. a4 {[%clk 0:02:30]}  a5 {[%clk 0:02:36]} 20. Bc3 {[%clk 0:02:28]}  Nf5 {[%clk 0:02:35]} 21. Ne1 {[%clk 0:02:19]}  Nb7 {[%clk 0:02:29]} 22. Nd3 {[%clk 0:02:16]}  e5 {[%clk 0:02:27]} 23. Bb2 {[%clk 0:02:13]}  Rd8 {[%clk 0:02:25]} 24. Nc3 {[%clk 0:02:11]}  Ne7 {[%clk 0:02:16]} 25. Kh2 {[%clk 0:02:02]}  Bxg2 {[%clk 0:02:15]} 26. Kxg2 {[%clk 0:02:03]}  Qc6+ {[%clk 0:02:13]} 27. e4 {[%clk 0:02:03]}  Nd6 {[%clk 0:02:12]} 28. Nd5 {[%clk 0:02:03]}  Nxd5 {[%clk 0:02:12]} 29. cxd5 {[%clk 0:01:57]}  Qb7 {[%clk 0:02:10]} 30. Qe2 {[%clk 0:01:55]}  Qa6 {[%clk 0:02:02]} 31. Kh2 {[%clk 0:01:49]}  Rc8 {[%clk 0:01:56]} 32. f4 {[%clk 0:00:58]}  c4 {[%clk 0:01:56]} 33. bxc4 {[%clk 0:00:58]}  Qxc4 {[%clk 0:01:53]} 34. fxe5 {[%clk 0:00:57]}  fxe5 {[%clk 0:01:52]} 35. Re1 {[%clk 0:00:52]}  Qxa4 {[%clk 0:01:48]} 36. Kh1 {[%clk 0:00:45]}  Rc2 {[%clk 0:01:47]} 37. Qf3 {[%clk 0:00:46]}  Qe8 {[%clk 0:01:38]} 38. Rf1 {[%clk 0:00:41]}  Nc4 {[%clk 0:01:32]} 39. Bc1 {[%clk 0:00:36]}  Qd7 {[%clk 0:01:30]} 40. Kg1 {[%clk 0:00:30]}  a4 {[%clk 0:01:24]} 41. Nb4 {[%clk 0:00:25]}  Nd2 {[%clk 0:01:18]} 42. Qd3 {[%clk 0:00:17]}  Rxc1 {[%clk 0:01:10]} 43. Rxc1 {[%clk 0:00:17]}  Nb3 {[%clk 0:01:11]} 44. Rc6 {[%clk 0:00:12]}  Bf8 {[%clk 0:01:11]} 45. Qb5 {[%clk 0:00:08]}  Bc5+ {[%clk 0:01:10]} 46. Kg2 {[%clk 0:00:06]}  Qg4 {[%clk 0:01:07]} 47. Nc2 {[%clk 0:00:04]}  Qxe4+ {[%clk 0:01:05]} 48. Kh2 {[%clk 0:00:03]}  Qxc2+ {[%clk 0:01:04]} 49. Kh3 {[%clk 0:00:03]}  Qf5+ {[%clk 0:01:04]} 50. Kg2 {[%clk 0:00:03]}  Nd4 {[%clk 0:01:04]} 0-1


[Site "https://www.chess.com"]

[Event "Titled Tuesday Blitz March 22 Early 2022"]
[White "Ronka, Erik"]
[Black "Rostovtsev, Dmitry"]
[WhiteFideId "505080"]
[BlackFideId "34278320"]
[WhiteElo "2264"]
[BlackElo "2359"]
[Result "1-0"]
[Round "06"]
[TimeControl "180+1"]
[Date "2022.03.22"]
[WhiteClock "0:00:46"]
[BlackClock "0:00:02"]

1. e4 {[%clk 0:02:59]}  c5 {[%clk 0:02:59]} 2. Nf3 {[%clk 0:03:00]}  Nc6 {[%clk 0:02:57]} 3. d4 {[%clk 0:03:00]}  cxd4 {[%clk 0:02:55]} 4. Nxd4 {[%clk 0:03:01]}  Nf6 {[%clk 0:02:55]} 5. Nc3 {[%clk 0:03:01]}  e5 {[%clk 0:02:54]} 6. Ndb5 {[%clk 0:03:01]}  d6 {[%clk 0:02:54]} 7. Bg5 {[%clk 0:03:02]}  a6 {[%clk 0:02:54]} 8. Na3 {[%clk 0:03:03]}  b5 {[%clk 0:02:55]} 9. Bxf6 {[%clk 0:03:03]}  gxf6 {[%clk 0:02:53]} 10. Nd5 {[%clk 0:03:04]}  Bg7 {[%clk 0:02:51]} 11. Bd3 {[%clk 0:03:03]}  Ne7 {[%clk 0:02:48]} 12. Nxe7 {[%clk 0:03:03]}  Qxe7 {[%clk 0:02:48]} 13. O-O {[%clk 0:02:56]}  O-O {[%clk 0:02:47]} 14. Qh5 {[%clk 0:02:53]}  Bb7 {[%clk 0:02:26]} 15. c4 {[%clk 0:02:50]}  bxc4 {[%clk 0:02:13]} 16. Nxc4 {[%clk 0:02:51]}  d5 {[%clk 0:02:08]} 17. Ne3 {[%clk 0:02:36]}  dxe4 {[%clk 0:02:02]} 18. Nf5 {[%clk 0:02:35]}  Qe6 {[%clk 0:01:48]} 19. Qg4 {[%clk 0:02:34]}  Qxf5 {[%clk 0:01:45]} 20. Qxf5 {[%clk 0:02:35]}  exd3 {[%clk 0:01:45]} 21. Qxd3 {[%clk 0:02:36]}  Bc6 {[%clk 0:01:45]} 22. Rac1 {[%clk 0:02:33]}  Bb5 {[%clk 0:01:44]} 23. Qf5 {[%clk 0:02:28]}  Bxf1 {[%clk 0:01:42]} 24. Kxf1 {[%clk 0:02:29]}  Rfd8 {[%clk 0:01:40]} 25. g3 {[%clk 0:02:29]}  Rab8 {[%clk 0:01:31]} 26. b3 {[%clk 0:02:28]}  h6 {[%clk 0:01:18]} 27. Rc4 {[%clk 0:02:23]}  Rd1+ {[%clk 0:01:16]} 28. Kg2 {[%clk 0:02:23]}  Rdd8 {[%clk 0:01:12]} 29. Rc7 {[%clk 0:02:15]}  Rd2 {[%clk 0:00:48]} 30. Rc8+ {[%clk 0:02:10]}  Rxc8 {[%clk 0:00:46]} 31. Qxc8+ {[%clk 0:02:11]}  Kh7 {[%clk 0:00:46]} 32. Qxa6 {[%clk 0:02:09]}  f5 {[%clk 0:00:46]} 33. a4 {[%clk 0:02:05]}  e4 {[%clk 0:00:45]} 34. Qb5 {[%clk 0:02:04]}  Kg6 {[%clk 0:00:40]} 35. Qa5 {[%clk 0:01:39]}  e3 {[%clk 0:00:27]} 36. Qb6+ {[%clk 0:01:17]}  Bf6 {[%clk 0:00:13]} 37. Qxe3 {[%clk 0:01:16]}  Ra2 {[%clk 0:00:14]} 38. h3 {[%clk 0:01:13]}  Rb2 {[%clk 0:00:13]} 39. g4 {[%clk 0:01:13]}  fxg4 {[%clk 0:00:13]} 40. hxg4 {[%clk 0:01:14]}  Ra2 {[%clk 0:00:12]} 41. Qe4+ {[%clk 0:01:10]}  Kg7 {[%clk 0:00:12]} 42. Qd5 {[%clk 0:01:03]}  Bh4 {[%clk 0:00:10]} 43. Qd4+ {[%clk 0:01:02]}  Bf6 {[%clk 0:00:10]} 44. Qc5 {[%clk 0:00:59]}  Rb2 {[%clk 0:00:08]} 45. a5 {[%clk 0:00:53]}  Rd2 {[%clk 0:00:03]} 46. a6 {[%clk 0:00:52]}  Bd4 {[%clk 0:00:03]} 47. Qf5 {[%clk 0:00:48]}  Ba7 {[%clk 0:00:02]} 48. Qe5+ {[%clk 0:00:46]} 1-0


[Site "https://www.chess.com"]